bitfinex/quotes_ETHUSD_20250604
["timestamp","ask_amount","ask_price","bid_price","bid_amount"]
[1749049650213,1.10961528,2636.3,2636.2,25.964]
[1749049650623,1.10961528,2636.3,2636.2,24.176]
[1749049650827,1.10961528,2636.3,2636.2,25.964]
[1749049653171,1.10961528,2636.3,2636.2,9.964]
[1749049654530,0.2,2636.3,2636.2,9.964]
[1749049654935,0.2,2636.3,2636.2,25.964]
[1749049656164,0.2,2636.3,2636.2,25.965]
[1749049658570,1.7955,2636.3,2636.2,25.965]
[1749049658907,1.7955,2636.3,2636.2,9.965]
[1749049659273,1.7955,2636.3,2636.2,1.789]
[1749049662700,0.2,2636.3,2636.2,1.789]
[1749049663512,0.02641293,2636.3,2636.2,1.789]
[1749049664302,0.02641293,2636.5,2636.2,2.323253]
[1749049664537,0.02641293,2636.7,2636.1,8.395947]
[1749049664820,0.02641293,2636.7,2636.2,16.0]
[1749049665036,0.02641293,2636.7,2636.4,16.0]
[1749049665230,0.02641293,2636.7,2636.6,16.0]
[1749049665434,0.02,2636.9,2636.6,7.042]
[1749049665606,0.02,2636.9,2636.8,16.0]
[1749049665795,0.02,2636.9,2636.8,42.428391]
[1749049666002,0.02,2636.9,2636.8,16.0]
[1749049666295,0.02951558,2636.9,2636.8,16.0]
[1749049666496,0.00310265,2636.9,2636.8,39.140222]
[1749049666724,0.00310265,2636.9,2636.8,30.683612]
[1749049667030,0.00042118,2636.9,2636.8,30.683612]
[1749049667244,0.02641293,2637.4,2636.9,16.55]
[1749049667554,0.02641293,2637.2,2637.1,16.0]
[1749049668380,0.02641293,2637.4,2637.1,16.0]
[1749049668674,1.6464,2637.9,2637.1,16.0]
[1749049668675,0.02641293,2637.2,2637.1,16.0]
[1749049668817,0.02641293,2637.2,2637.1,1.786]
[1749049669018,2.22611293,2637.2,2637.0,8.18]
[1749049669217,0.02641293,2636.1,2635.7,1.16897625]
[1749049669416,0.02641293,2635.9,2635.8,1.786]
[1749049671244,0.02641293,2635.9,2635.7,16.0]
[1749049671454,0.02641293,2635.7,2635.6,22.491]
[1749049671657,0.02641293,2635.7,2635.6,24.277]
[1749049671920,0.02641293,2635.7,2635.6,25.45788568]
[1749049672580,0.02641293,2635.7,2635.6,24.277]
[1749049673282,0.02641293,2635.7,2635.6,16.0]
[1749049673583,0.00332232,2635.7,2635.6,24.277]
[1749049674346,0.00332232,2635.7,2635.6,16.0]
[1749049674682,0.00332232,2635.7,2635.6,18.96850754]
[1749049675587,0.00332232,2635.7,2635.6,17.786]
[1749049676295,0.00054043,2635.7,2635.6,17.786]
[1749049677486,0.00054043,2635.7,2635.6,25.966]
[1749049679148,0.00054043,2635.7,2635.6,27.14934176]
[1749049679347,0.00054043,2635.7,2635.6,25.966]
[1749049679652,0.00054043,2635.7,2635.6,27.14928069]
[1749049679952,0.00054043,2635.7,2635.6,25.966]
[1749049680192,0.00054043,2635.7,2635.6,9.966]
[1749049681121,0.00054043,2635.7,2635.6,8.18]
[1749049681299,0.00054043,2635.7,2635.6,9.966]
[1749049681502,0.00054043,2635.7,2635.6,25.966]
[1749049683839,1.6031,2635.9,2635.6,25.966]
[1749049683840,0.9880358,2635.9,2635.6,25.966]
[1749049686227,0.9880358,2635.9,2635.7,9.967]
[1749049686441,0.9880358,2635.9,2635.8,1.786]
[1749049687090,0.9880358,2635.9,2635.7,8.181]
[1749049687292,0.9880358,2635.9,2635.8,1.786]
[1749049691829,1.526,2636.1,2635.8,16.0]
[1749049692030,1.526,2636.1,2635.9,1.784]
[1749049692393,1.526,2636.1,2636.0,1.784]
[1749049701688,1.526,2636.1,2635.1,0.01317299]
[1749049701862,1.526,2636.1,2636.0,8.182]
[1749049702063,1.526,2636.1,2636.0,9.966]
[1749049702264,2.076,2636.1,2636.0,9.966]
[1749049702496,2.2819,2636.1,2636.0,9.966]
[1749049702743,1.5243,2635.9,2635.1,0.01317299]
[1749049705821,1.5243,2635.9,2635.1,0.62827299]
[1749049706207,1.5243,2635.9,2635.1,0.01317299]
[1749049707395,1.5243,2635.9,2635.3,16.0]
[1749049709484,0.2076,2636.1,2635.2,9.967]
[1749049709485,0.55,2635.6,2635.2,9.967]
[1749049709719,1.5373,2635.5,2635.2,9.967]
[1749049709939,1.5373,2635.3,2635.2,9.967]
[1749049710144,2.1316,2635.3,2635.2,9.967]
[1749049712322,2.1316,2635.3,2635.2,8.184]
[1749049712525,2.1757,2635.3,2635.2,9.968]
[1749049718236,0.55,2635.3,2635.2,1.785]
[1749049718406,0.55,2635.3,2634.1,0.02]
[1749049718813,0.55,2634.9,2634.1,0.02]
[1749049719118,0.20873,2635.4,2634.1,0.02]
[1749049719119,1.5509,2634.6,2634.1,0.02]
[1749049719322,1.5509,2634.6,2631.9,12.1178305]
[1749049719521,0.55,2634.7,2632.8,26.0]
[1749049719522,1.5509,2634.4,2632.8,26.0]
[1749049719741,1.5509,2634.4,2632.6,16.995885]
[1749049719942,1.5509,2634.4,2632.8,10.0]
[1749049720241,1.5509,2634.4,2632.8,16.0]
[1749049720419,1.5509,2634.4,2633.0,16.0]
[1749049720624,1.5509,2634.4,2633.0,8.61933294]
[1749049721196,1.5509,2634.4,2632.6,22.3887]
[1749049721397,1.5509,2634.4,2633.0,6.488]
[1749049721617,1.5509,2634.4,2632.8,0.55]
[1749049721819,0.02,2633.9,2632.6,0.26357538]
[1749049722014,1.641,2633.8,2632.7,0.00823494]
[1749049722245,1.641,2633.8,2632.6,0.26357538]
[1749049722429,1.641,2633.8,2632.8,6.488]
[1749049722627,1.641,2633.8,2632.4,0.55]
[1749049722628,1.641,2633.8,2632.1,9.677727]
[1749049722853,1.641,2633.8,2632.7,16.0]
[1749049723055,1.641,2633.8,2632.5,22.488]
[1749049723419,1.641,2633.8,2632.6,0.55]
[1749049723770,1.641,2633.8,2632.8,0.55]
[1749049723919,1.641,2633.8,2632.6,0.55]
[1749049724119,1.641,2633.8,2632.6,6.488]
[1749049724320,1.641,2633.8,2632.7,16.0]
[1749049724932,1.641,2633.8,2632.4,0.55]
[1749049725272,1.641,2633.8,2632.6,16.0]
[1749049725833,1.641,2633.8,2632.7,0.55]
[1749049726233,1.641,2633.8,2632.9,16.0]
[1749049726461,1.641,2633.8,2632.8,16.55]
[1749049726818,1.641,2633.8,2632.7,0.55]
[1749049727157,1.641,2633.8,2633.1,16.0]
[1749049727325,1.641,2633.8,2632.7,16.55]
[1749049727661,1.641,2633.8,2632.9,16.0]
[1749049729573,1.641,2633.8,2632.9,8.87962005]
[1749049731223,1.641,2633.8,2632.8,9.97]
[1749049731775,1.641,2633.8,2632.9,16.0]
[1749049734952,1.641,2633.8,2633.1,10.0]
[1749049735153,0.02,2633.9,2633.1,23.941325]
[1749049735352,0.02,2633.9,2633.2,16.55]
[1749049735650,0.02,2633.9,2633.3,3.324837]
[1749049735853,0.02,2633.9,2633.5,0.55]
[1749049736069,0.02,2633.9,2633.6,16.0]
[1749049736243,0.02,2633.9,2633.7,16.0]
[1749049736580,0.02,2633.9,2633.5,16.55]
[1749049736780,0.02,2633.9,2633.7,16.55]
[1749049738680,0.02,2633.9,2633.8,16.0]
[1749049740482,0.02,2633.9,2633.8,16.55]
[1749049741192,0.02,2633.9,2633.8,16.0]
[1749049741485,0.02,2633.9,2633.8,17.782]
[1749049741680,0.02,2633.9,2633.8,16.0]
[1749049741859,0.02,2633.9,2633.8,17.782]
[1749049743194,0.02,2633.9,2633.8,18.332]
[1749049743385,0.02,2633.9,2633.8,19.51477738]
[1749049743597,0.02,2633.9,2633.8,36.720248]
[1749049743896,0.02,2634.9,2634.1,16.55]
[1749049744061,0.02,2634.9,2634.3,16.0]
[1749049744262,0.02,2634.9,2634.4,1.782]
[1749049745271,0.02,2634.9,2634.6,16.0]
[1749049745455,0.00065657,2634.9,2634.5,16.0]
[1749049745650,0.00065657,2634.9,2634.6,10.892334]
[1749049745880,0.00065657,2634.9,2634.7,10.0]
[1749049746076,0.00065657,2634.9,2634.5,16.0]
[1749049746077,0.00065657,2634.9,2634.5,16.55]
[1749049746395,0.00065657,2634.9,2634.7,0.55]
[1749049746550,0.00065657,2634.9,2634.8,16.0]
[1749049746976,0.00065657,2634.9,2634.7,0.55]
[1749049747290,0.00065657,2634.9,2634.8,16.0]
[1749049747828,0.00065657,2634.9,2634.7,0.55]
[1749049748085,0.00065657,2634.9,2634.6,0.55]
[1749049748470,0.00065657,2634.9,2634.8,16.0]
[1749049750997,0.00065657,2634.9,2634.7,1.781]
[1749049751202,0.00065657,2634.9,2634.8,16.0]
[1749049754003,0.00065657,2634.9,2634.7,8.264]
[1749049754501,0.00065657,2634.9,2634.7,8.263]
[1749049754703,0.00065657,2634.9,2634.8,0.55]
[1749049754888,0.00065657,2634.9,2634.8,23.53260113]
[1749049755068,0.00065657,2634.9,2634.8,23.88413517]
[1749049755268,0.00065657,2634.9,2634.8,20.54870117]
[1749049755469,1.567,2635.9,2634.8,4.05789]
[1749049755705,1.567,2635.9,2635.0,0.55]
[1749049755919,1.567,2635.9,2635.0,10.55]
[1749049756120,1.567,2635.9,2635.1,10.0]
[1749049756268,1.567,2635.9,2635.1,16.0]
[1749049756463,1.567,2635.9,2635.0,0.55]
[1749049756664,1.567,2635.9,2635.1,1.778]
[1749049759597,1.567,2635.9,2635.2,0.55]
[1749049759970,0.02,2635.9,2635.2,0.55]
[1749049760228,0.02,2635.9,2635.6,0.55]
[1749049760432,0.02,2635.9,2635.8,16.0]
[1749049760867,1.6379,2635.9,2635.8,1.778]
[1749049761069,1.6379,2635.9,2635.7,8.185]
[1749049761264,1.6379,2635.9,2635.8,1.778]
[1749049767620,1.6379,2635.9,2635.8,9.962]
[1749049767910,2.1879,2635.9,2635.8,9.962]
[1749049768075,2.40669,2635.9,2635.8,9.962]
[1749049769118,2.41749,2635.9,2635.8,1.778]
[1749049769819,1.5509,2635.8,2634.4,1.18007847]
[1749049769980,1.5509,2635.6,2634.3,1.18007847]
[1749049770175,1.5509,2635.6,2634.1,1.18007847]
[1749049770380,0.57,2635.9,2634.0,1.18007847]
[1749049770381,0.55,2635.8,2634.0,1.18007847]
[1749049770581,0.55,2635.6,2633.9,1.18007847]
[1749049770783,1.621,2635.3,2633.7,1.18007847]
[1749049771116,0.55,2635.4,2633.8,1.18007847]
[1749049771280,1.5376,2635.1,2633.8,1.18007847]
[1749049772324,1.5376,2635.1,2633.9,1.18007847]
[1749049772520,1.5376,2635.1,2633.9,1.5661506]
[1749049773196,1.5376,2635.1,2633.9,0.38607213]
[1749049773587,1.5376,2635.1,2633.9,1.5661506]
[1749049773895,1.5376,2635.1,2634.0,0.55]
[1749049774134,1.5376,2635.1,2634.2,16.55]
[1749049774340,1.5376,2635.1,2634.2,0.55]
[1749049774535,1.5376,2635.1,2634.2,1.73007847]
[1749049774738,1.5781,2635.7,2634.2,1.73007847]
[1749049774922,1.5781,2635.7,2634.4,1.18007847]
[1749049775119,1.5781,2635.7,2634.5,0.55]
[1749049775320,1.5781,2635.7,2634.5,1.73007847]
[1749049777449,1.5781,2635.7,2634.7,16.0]
[1749049782066,1.5781,2635.7,2634.7,23.65607847]
[1749049782870,1.5781,2635.7,2634.8,1.73007847]
[1749049783021,1.567,2635.9,2635.0,0.55]
[1749049783214,0.02,2635.9,2635.3,0.55]
[1749049783442,0.02,2635.9,2635.5,0.55]
[1749049783858,0.00052051,2635.9,2635.5,0.55]
[1749049784567,0.00052051,2635.9,2635.4,17.775]
[1749049788059,0.00052051,2635.9,2635.5,0.55]
[1749049788660,0.00052051,2635.9,2635.6,1.774]
[1749049790188,0.00052051,2635.9,2635.7,6.474]
[1749049790858,0.00052051,2635.9,2635.8,16.55]
[1749049791063,0.00052051,2635.9,2635.8,20.749506]
[1749049791259,0.00052051,2635.9,2635.8,19.302548]
[1749049791458,0.00052051,2635.9,2635.8,20.48262647]
[1749049791650,0.02,2636.9,2636.1,16.0]
[1749049791850,0.02,2636.9,2636.2,1.774]
[1749049794074,1.533,2636.9,2636.0,0.55]
[1749049794242,1.51377561,2636.9,2636.0,0.55]
[1749049794442,1.51377561,2636.9,2635.9,10.0]
[1749049794780,1.51377561,2636.9,2635.6,1.18229547]
[1749049794980,1.51377561,2636.9,2635.6,6.471]
[1749049795584,1.51377561,2636.9,2635.7,22.471]
[1749049797455,1.51377561,2636.9,2635.8,8.181]
[1749049797778,1.51377561,2636.9,2635.8,9.955]
[1749049798749,1.51377561,2636.9,2635.9,1.774]
[1749049798961,1.51377561,2636.9,2635.9,17.774]
[1749049801306,1.51377561,2636.9,2636.0,1.774]
[1749049801848,1.51377561,2636.9,2635.8,8.181]
[1749049802095,1.51377561,2636.9,2635.9,1.774]
[1749049802947,1.51377561,2636.9,2636.0,10.55]
[1749049803591,1.51377561,2636.9,2636.0,0.55]
[1749049804459,1.51377561,2636.9,2636.2,0.55]
[1749049804985,0.89844985,2636.9,2636.3,0.6145]
[1749049806269,4.67,2637.8,2636.3,0.6145]
[1749049806600,0.469,2637.7,2636.5,6.578118]
[1749049806763,0.469,2637.7,2636.6,1.774]
[1749049807955,1.655,2637.6,2636.6,11.774]
[1749049808082,1.655,2637.6,2636.6,1.774]
[1749049809374,1.655,2637.6,2636.7,1.774]
[1749049809593,1.6197,2637.4,2636.7,1.774]
[1749049818223,1.6197,2637.4,2636.4,1.79679547]
[1749049818224,1.6197,2637.4,2636.8,1.77]
[1749049819391,1.6197,2637.4,2636.9,1.77]
[1749049819593,1.531,2637.3,2637.0,1.77]
[1749049819930,1.531,2637.3,2637.1,1.77]
[1749049820135,0.6201,2637.2,2637.1,1.77]
[1749049820427,2.2407,2637.2,2637.1,9.949]
[1749049823261,1.5154,2637.1,2635.5,0.6145]
[1749049823391,1.5154,2637.1,2635.6,8.234]
[1749049823592,1.5154,2636.9,2635.6,8.234]
[1749049823787,1.5154,2636.9,2635.8,10.0]
[1749049824005,1.5154,2636.9,2635.9,1.38710617]
[1749049824200,1.5154,2636.9,2635.9,0.6145]
[1749049824408,1.5154,2636.9,2636.1,8.663999]
[1749049824608,4.67,2637.8,2637.1,7.29141818]
[1749049824808,0.469,2637.8,2637.2,1.77]
[1749049825028,0.55,2637.7,2637.3,1.77]
[1749049825612,0.55,2637.7,2637.1,7.29141818]
[1749049827259,0.55,2637.7,2637.1,4.51401618]
[1749049827260,19.988,2637.6,2637.1,4.51401618]
[1749049827552,20.538,2637.3,2635.2,1.589]
[1749049827771,0.55,2637.1,2635.1,0.02]
[1749049827930,0.55,2636.7,2635.1,0.8273]
[1749049828351,0.55,2636.5,2635.1,0.8273]
[1749049828518,1.6594,2636.2,2635.1,0.02]
[1749049830328,1.6594,2636.2,2635.2,1.6402]
[1749049830718,1.6594,2636.2,2635.5,16.0]
[1749049831020,1.6594,2636.2,2635.3,0.55]
[1749049831717,11.684,2637.3,2635.5,0.55]
[1749049831718,1.5877,2637.2,2635.5,0.55]
[1749049831913,1.5877,2637.1,2635.6,0.21265]
[1749049832359,0.55,2637.0,2635.6,0.21265]
[1749049832535,1.5732,2636.9,2635.6,0.21265]
[1749049833821,1.6226,2636.7,2635.6,0.21265]
[1749049834025,4.67,2636.8,2635.6,0.21265]
[1749049834026,2.25186,2636.6,2635.6,0.21265]
[1749049834736,1.6226,2636.6,2635.6,0.21265]
[1749049834950,1.6226,2636.6,2635.7,1.5137]
[1749049837473,1.6226,2636.6,2635.8,9.951]
[1749049840681,1.6226,2636.6,2635.8,16.414]
[1749049842470,1.6226,2636.6,2636.0,1.77]
[1749049842640,4.67,2636.8,2636.0,1.77]
[1749049842641,1.5953,2636.8,2636.0,1.77]
[1749049842843,1.5953,2637.4,2636.2,1.5903]
[1749049846183,1.5562,2637.2,2636.3,1.767]
[1749049850150,1.5562,2637.2,2636.4,1.767]
[1749049850352,1.5562,2637.2,2636.5,1.767]
[1749049850586,1.5562,2637.2,2636.6,1.767]
[1749049850775,1.5562,2637.2,2636.7,1.767]
[1749049851096,1.5562,2637.2,2636.8,1.767]
[1749049851389,1.5913,2637.0,2636.9,1.767]
[1749049851573,2.21743,2637.0,2636.9,1.767]
[1749049852772,1.5913,2637.0,2636.9,1.767]
[1749049855694,1.5913,2637.0,2636.0,1.5542]
[1749049856061,1.5913,2637.0,2636.1,1.767]
[1749049857678,1.5913,2637.0,2636.2,1.5872]
[1749049859464,1.5913,2637.0,2636.3,1.767]
[1749049861614,1.5913,2637.0,2636.4,17.1767]
[1749049861926,0.57,2637.9,2636.4,17.1767]
[1749049861927,1.6254,2637.8,2636.6,10.0]
[1749049862067,1.6254,2637.8,2636.7,16.0]
[1749049862266,1.6254,2637.8,2636.5,2.7698809]
[1749049862566,1.6254,2637.8,2636.7,16.0]
[1749049862866,1.6254,2637.8,2636.8,1.6598]
[1749049863100,1.6254,2637.8,2636.9,11.767]
[1749049863882,0.02,2637.9,2637.1,16.0]
[1749049864085,0.02,2637.9,2637.4,2.0584]
[1749049864407,0.02,2637.9,2637.5,18.89700809]
[1749049864719,0.02,2637.9,2637.8,19.23482]
[1749049864915,0.02,2637.9,2637.8,21.29982]
[1749049865208,0.02,2637.9,2637.8,18.065]
[1749049865561,0.02,2637.9,2637.8,21.0806]
[1749049865766,0.02,2637.9,2637.8,19.45435]
[1749049866197,0.02,2637.9,2637.8,18.90435]
[1749049866377,0.02,2637.9,2637.8,27.12935]
[1749049867480,0.02,2637.9,2637.8,35.30735]
[1749049870404,0.02,2637.9,2637.8,27.33335]
[1749049870706,0.02,2637.9,2637.8,9.944]
[1749049872011,1.574,2638.2,2637.8,9.943]
[1749049872220,1.574,2638.2,2637.9,1.766]
[1749049873178,0.02,2638.9,2637.9,1.766]
[1749049873179,1.5246,2638.8,2637.9,1.766]
[1749049873616,1.5246,2638.8,2638.0,1.5168]
[1749049873922,1.5246,2638.8,2638.1,0.32828]
[1749049876628,1.5246,2638.8,2638.2,1.764]
[1749049877413,1.5246,2638.8,2638.3,8.176]
[1749049878409,1.5246,2638.8,2638.4,1.764]
[1749049880889,1.5246,2638.8,2638.3,8.176]
[1749049880890,0.55,2638.7,2638.3,8.176]
[1749049881105,0.55,2638.5,2638.4,1.764]
[1749049881306,19.9199,2638.5,2638.4,1.764]
[1749049881536,18.2099,2638.4,2638.3,8.176]
[1749049881733,0.55,2638.4,2638.3,8.175]
[1749049881941,0.55,2638.4,2638.3,9.939]
[1749049882288,2.0931,2638.4,2638.3,9.939]
[1749049882491,2.30241,2638.4,2638.3,9.939]
[1749049883897,1.33241,2638.4,2638.3,9.939]
[1749049885996,1.88241,2638.4,2638.3,9.939]
[1749049888699,1.88241,2638.4,2638.3,8.175]
[1749049888899,1.88241,2638.4,2638.3,9.939]
[1749049889366,1.6056,2638.2,2637.9,8.177]
[1749049889503,18.36556,2638.1,2638.0,1.764]
[1749049889697,8.81856,2638.1,2638.0,1.764]
[1749049890123,10.38836,2638.1,2638.0,1.764]
[1749049890325,2.36556,2638.1,2638.0,1.764]
[1749049890514,8.81856,2638.1,2638.0,1.764]
[1749049891042,8.81856,2638.1,2636.3,1.5817]
[1749049891245,0.55,2637.9,2636.1,1.6273]
[1749049891750,1.5376,2637.8,2636.1,1.6273]
[1749049891948,1.5376,2637.6,2636.1,1.6273]
[1749049892132,0.55,2637.5,2636.1,1.6273]
[1749049892443,1.5376,2637.4,2636.3,1.5821]
[1749049892742,1.5376,2637.4,2636.5,1.5821]
[1749049892947,16.0,2638.3,2636.5,1.5821]
[1749049893266,1.5319,2638.0,2636.5,1.5821]
[1749049893447,17.5319,2638.0,2636.5,1.5821]
[1749049893759,1.5319,2638.0,2636.5,1.5821]
[1749049894559,1.5319,2638.0,2636.7,1.5504]
[1749049894865,1.5319,2638.0,2636.8,0.19482915]
[1749049895032,1.5319,2638.0,2636.9,1.5504]
[1749049897467,1.5319,2638.0,2637.0,9.942]
[1749049900934,1.5319,2638.0,2637.1,1.6436]
[1749049903832,1.5919,2638.8,2637.5,1.6161]
[1749049904031,1.5919,2638.8,2637.2,10.39789154]
[1749049904032,1.5919,2638.8,2637.7,2.1661]
[1749049904331,0.02,2638.9,2638.0,1.6161]
[1749049905354,0.02,2638.9,2637.6,8.216]
[1749049905553,0.02,2638.9,2637.8,10.0]
[1749049905757,0.02,2638.9,2637.8,3.652356]
[1749049906071,0.02,2638.9,2637.9,1.3652356]
[1749049906570,0.02,2638.9,2637.1,0.30581121]
[1749049906571,1.5188,2638.8,2638.0,1.761]
[1749049906874,0.02,2638.9,2638.0,1.761]
[1749049907666,0.02,2638.9,2638.3,0.55]
[1749049907855,0.02,2638.9,2638.4,8.177]
[1749049908055,1.6497,2639.4,2638.4,8.177]
[1749049908280,1.6497,2639.4,2638.5,0.8177]
[1749049908450,1.6497,2639.4,2638.7,1.5012]
[1749049909583,1.6497,2639.5,2638.7,1.5012]
[1749049914254,1.6497,2639.5,2638.8,1.761]
[1749049914493,1.6497,2639.5,2638.5,1.5663]
[1749049914652,1.6497,2639.5,2638.9,1.761]
[1749049917095,1.6497,2639.5,2638.5,1.5663]
[1749049917302,1.6497,2639.5,2639.0,1.761]
[1749049917597,1.6497,2639.5,2638.5,1.5663]
[1749049917789,1.6497,2639.5,2638.6,1.761]
[1749049919897,1.6497,2639.5,2638.7,1.761]
[1749049921189,1.6497,2639.5,2638.8,1.761]
[1749049921465,1.6497,2639.5,2638.4,8.177]
[1749049921657,1.6497,2639.5,2638.5,1.761]
[1749049922999,1.6497,2639.5,2638.4,8.177]
[1749049923209,16.02,2639.9,2638.4,8.177]
[1749049923367,16.0,2639.6,2638.5,1.761]
[1749049923579,0.55,2639.4,2638.5,1.761]
[1749049923904,0.55,2639.2,2638.5,1.761]
[1749049924087,0.55,2639.4,2638.5,1.761]
[1749049924403,1.6303,2639.1,2638.5,1.761]
[1749049924994,1.6303,2639.1,2638.6,1.761]
[1749049925571,1.6303,2639.1,2638.7,1.761]
[1749049926304,1.6303,2639.1,2638.4,8.177]
[1749049926509,1.6303,2639.1,2638.8,1.761]
[1749049927384,1.6303,2639.1,2638.9,1.761]
[1749049929190,1.6303,2639.1,2638.4,8.177]
[1749049929507,1.6303,2639.1,2638.5,1.761]
[1749049930288,1.6303,2639.1,2638.4,8.177]
[1749049930289,1.6303,2639.1,2638.6,1.761]
[1749049930889,1.6303,2639.1,2638.7,9.936]
[1749049932613,1.5449,2639.7,2638.7,10.9296]
[1749049932811,1.5449,2639.7,2638.7,9.936]
[1749049934010,1.5449,2639.7,2638.8,0.9471]
[1749049935615,1.5449,2639.7,2638.8,16.9471]
[1749049937400,0.55,2639.6,2638.7,8.175]
[1749049937595,1.6565,2639.5,2638.8,1.758]
[1749049938817,1.6565,2639.5,2638.7,8.175]
[1749049939020,1.6565,2639.5,2638.8,1.758]
[1749049940084,1.6565,2639.5,2638.7,8.175]
[1749049940085,0.55,2639.4,2638.7,8.175]
[1749049940320,1.86365,2639.3,2638.7,8.175]
[1749049940694,0.55,2639.0,2638.7,8.175]
[1749049940885,0.55,2639.1,2638.8,1.758]
[1749049941109,0.55,2638.9,2638.8,1.758]
[1749049941293,2.0549,2638.9,2638.8,1.758]
[1749049941500,2.26039,2638.9,2638.8,1.758]
[1749049941734,0.75549,2638.9,2638.7,8.175]
[1749049941897,2.1375,2638.8,2638.7,8.175]
[1749049942225,1.5875,2638.8,2638.7,9.933]
[1749049945333,2.1375,2638.8,2638.7,8.175]
[1749049945494,0.55,2638.8,2638.7,9.933]
[1749049946010,2.1019,2638.8,2638.7,9.933]
[1749049946341,0.55,2638.7,2637.2,0.9471]
[1749049946647,0.55,2638.5,2637.3,1.758]
[1749049946851,1.5519,2638.3,2637.3,1.758]
[1749049947428,1.5519,2638.3,2637.4,8.176]
[1749049949154,1.5519,2638.3,2637.5,1.758]
[1749049950077,16.22065,2639.3,2637.5,1.758]
[1749049950078,1.656,2638.7,2637.6,0.9471]
[1749049950235,1.656,2638.7,2637.7,1.87051]
[1749049950579,1.656,2638.7,2637.5,1.758]
[1749049950712,1.656,2638.7,2637.6,9.934]
[1749049950913,1.656,2638.7,2637.7,1.758]
[1749049951613,1.6391,2638.6,2637.6,8.176]
[1749049951820,1.6391,2638.6,2637.8,1.758]
[1749049952373,0.55,2638.7,2637.8,1.758]
[1749049952562,0.55,2638.5,2637.6,8.176]
[1749049952855,1.6391,2638.4,2637.9,1.758]
[1749049953158,0.55,2638.5,2637.9,1.758]
[1749049953159,1.591,2638.2,2637.9,1.758]
[1749049953754,1.591,2638.7,2637.9,1.758]
[1749049953957,1.591,2638.8,2637.9,1.758]
[1749049954717,1.591,2638.8,2638.0,1.758]
[1749049955220,1.591,2638.8,2638.1,1.758]
[1749049957267,0.02,2638.9,2638.1,1.758]
[1749049957971,0.02,2638.9,2637.7,16.0]
[1749049958264,1.6373,2638.8,2637.8,1.758]
[1749049964083,0.02,2638.9,2638.0,16.0]
[1749049964965,0.02,2638.9,2637.8,1.758]
[1749049965368,0.02,2638.9,2638.0,16.0]
[1749049965974,0.02,2638.9,2637.8,1.758]
[1749049966371,0.02,2638.9,2638.0,16.0]
[1749049966962,0.02,2638.9,2637.8,1.758]
[1749049967379,0.02,2638.9,2638.0,16.0]
[1749049967696,0.02,2638.9,2637.8,17.758]
[1749049967893,0.02,2638.9,2637.8,1.758]
[1749049968465,0.02,2638.9,2638.0,16.0]
[1749049969001,0.02,2638.9,2637.8,17.758]
[1749049969293,0.02,2638.9,2637.8,1.758]
[1749049969500,0.02,2638.9,2638.0,16.0]
[1749049969716,0.02,2638.9,2637.9,0.55]
[1749049969886,0.02,2638.9,2638.0,1.27070748]
[1749049970389,0.02,2638.9,2638.1,16.0]
[1749049970585,0.02,2638.9,2638.1,16.55]
[1749049970790,0.02,2638.9,2638.1,0.55]
[1749049971087,0.02,2638.9,2638.1,16.55]
[1749049971286,0.02,2638.9,2638.0,10.521011]
[1749049971601,0.02,2638.9,2638.1,16.55]
[1749049971793,0.02,2638.9,2638.0,5.630165]
[1749049971992,0.02,2638.9,2638.1,0.55]
[1749049972308,0.02,2638.9,2638.3,16.0]
[1749049972309,1.5785,2638.8,2638.3,16.0]
[1749049973532,1.5785,2638.8,2638.0,0.55]
[1749049974033,1.5785,2638.8,2638.2,16.0]
[1749049975301,1.5785,2638.8,2638.0,16.55]
[1749049975502,1.5785,2638.8,2638.3,1.754]
[1749049977456,0.02,2638.9,2638.4,0.55]
[1749049977616,0.02,2638.9,2638.6,1.73131122]
[1749049977617,3.25e-05,2638.9,2638.6,1.73131122]
[1749049977947,1.5786,2639.7,2638.7,1.66972308]
[1749049978437,1.5786,2639.7,2638.8,0.51157018]
[1749049978613,1.5786,2639.7,2638.9,1.11720129]
[1749049978953,1.5786,2639.7,2638.9,1.754]
[1749049979107,1.5786,2639.7,2638.4,0.51157018]
[1749049979415,1.5786,2639.7,2638.6,16.0]
[1749049979619,1.5786,2639.7,2638.6,16.51157018]
[1749049981139,1.5786,2639.7,2638.6,9.8251367]
[1749049982041,1.5786,2639.7,2638.6,1.14946326]
[1749049982370,1.5786,2639.7,2638.7,1.754]
[1749049982577,1.5786,2639.7,2638.3,0.63789308]
[1749049982762,1.5786,2639.7,2638.4,1.754]